[Event "Early-Titled-Tuesday-Blitz-August-29-2023"]
[Site "Chess.com"]
[Date "2023.08.29"]
[Round "9"]
[White "alturas_pacificas"]
[Black "vladgoncharov"]
[Result "0-1"]
[WhiteElo "2388"]
[BlackElo "2554"]
[TimeControl "180+1"]
[EndTime "9:42:14 PDT"]
[Termination "vladgoncharov won on time"]

1. d4 {[%clk 0:03:00.9]} 1... Nf6 {[%clk 0:02:58.6]} 2. Bf4 {[%clk 0:03:01.4]}
2... c5 {[%clk 0:02:55.9]} 3. c3 {[%clk 0:03:01.1]} 3... Qb6 {[%clk 0:02:51.3]}
4. Qb3 {[%clk 0:03:00.8]} 4... cxd4 {[%clk 0:02:45.2]} 5. Qxb6 {[%clk
0:02:57.8]} 5... axb6 {[%clk 0:02:45.1]} 6. cxd4 {[%clk 0:02:58.5]} 6... Nc6
{[%clk 0:02:44.4]} 7. e3 {[%clk 0:02:29.9]} 7... Nb4 {[%clk 0:02:43.8]} 8. Kd1
{[%clk 0:02:24.7]} 8... Nxa2 {[%clk 0:02:28.8]} 9. Na3 {[%clk 0:02:09.7]} 9...
Nb4 {[%clk 0:02:26.7]} 10. Bb5 {[%clk 0:01:59.7]} 10... Nh5 {[%clk 0:02:16.1]}
11. Ne2 {[%clk 0:01:40.9]} 11... Nxf4 {[%clk 0:02:04.4]} 12. Nxf4 {[%clk
0:01:41.8]} 12... e6 {[%clk 0:02:04.8]} 13. Ke2 {[%clk 0:01:35.3]} 13... Bd6
{[%clk 0:02:03.8]} 14. Rhc1 {[%clk 0:01:25.3]} 14... Ke7 {[%clk 0:01:57.6]} 15.
Nc4 {[%clk 0:00:48.8]} 15... Rxa1 {[%clk 0:01:54]} 16. Rxa1 {[%clk 0:00:49.7]}
16... Bc7 {[%clk 0:01:53.4]} 17. Ra8 {[%clk 0:00:46.1]} 17... Rd8 {[%clk
0:01:46]} 18. Nd3 {[%clk 0:00:39.5]} 18... Nxd3 {[%clk 0:01:43.3]} 19. Kxd3
{[%clk 0:00:39.6]} 19... d5 {[%clk 0:01:37.4]} 20. Na3 {[%clk 0:00:23.5]} 20...
e5 {[%clk 0:01:28.9]} 21. Kd2 {[%clk 0:00:13]} 21... exd4 {[%clk 0:01:24.1]} 22.
exd4 {[%clk 0:00:13]} 22... Bxh2 {[%clk 0:01:23]} 23. g3 {[%clk 0:00:12.6]}
23... h5 {[%clk 0:01:22.1]} 24. Ke3 {[%clk 0:00:08.9]} 24... h4 {[%clk
0:01:22.4]} 25. gxh4 {[%clk 0:00:07.4]} 25... Bd6 {[%clk 0:01:22.4]} 26. Nc2
{[%clk 0:00:06.8]} 26... Rh8 {[%clk 0:01:16.7]} 27. Ne1 {[%clk 0:00:05.1]} 27...
Kd8 {[%clk 0:01:10]} 28. Nf3 {[%clk 0:00:04.5]} 28... Kc7 {[%clk 0:01:08.7]} 29.
Bd3 {[%clk 0:00:02.4]} 29... f6 {[%clk 0:01:01.5]} 30. Ra1 {[%clk 0:00:02.3]}
30... Re8+ {[%clk 0:01:00.9]} 31. Kd2 {[%clk 0:00:02.4]} 31... Bf4+ {[%clk
0:01:00.6]} 32. Kc3 {[%clk 0:00:02.8]} 32... Bg4 {[%clk 0:01:00.6]} 0-1

[Event "Early-Titled-Tuesday-Blitz-August-29-2023"]
[Site "Chess.com"]
[Date "2023.08.29"]
[Round "9"]
[White "skkeyan1309"]
[Black "jcibarra"]
[Result "1-0"]
[WhiteElo "2736"]
[BlackElo "2870"]
[TimeControl "180+1"]
[EndTime "9:42:17 PDT"]
[Termination "skkeyan1309 won by resignation"]

1. d4 {[%clk 0:02:49.9]} 1... Nf6 {[%clk 0:02:59.6]} 2. c4 {[%clk 0:02:49.3]}
2... d6 {[%clk 0:03:00.2]} 3. Nf3 {[%clk 0:02:48.2]} 3... g6 {[%clk 0:03:00]} 4.
Nc3 {[%clk 0:02:47.7]} 4... Bf5 {[%clk 0:03:00.7]} 5. g3 {[%clk 0:02:47.3]} 5...
Ne4 {[%clk 0:03:01]} 6. Bg2 {[%clk 0:02:45.1]} 6... Nxc3 {[%clk 0:03:00.7]} 7.
bxc3 {[%clk 0:02:46]} 7... Be4 {[%clk 0:03:01.4]} 8. O-O {[%clk 0:02:37.5]} 8...
Bg7 {[%clk 0:03:01.6]} 9. Bg5 {[%clk 0:02:27.5]} 9... h6 {[%clk 0:02:56.6]} 10.
Bf4 {[%clk 0:02:25.7]} 10... O-O {[%clk 0:02:56]} 11. h4 {[%clk 0:02:15]} 11...
c5 {[%clk 0:02:54.8]} 12. Qd2 {[%clk 0:02:13.5]} 12... Kh7 {[%clk 0:02:54.6]}
13. h5 {[%clk 0:02:08.6]} 13... Nc6 {[%clk 0:02:50.9]} 14. Be3 {[%clk
0:02:01.7]} 14... Bxf3 {[%clk 0:02:05.9]} 15. Bxf3 {[%clk 0:02:00.5]} 15... g5
{[%clk 0:02:05.2]} 16. Rfd1 {[%clk 0:01:49.1]} 16... Na5 {[%clk 0:02:04.6]} 17.
Rac1 {[%clk 0:01:43.6]} 17... f5 {[%clk 0:02:04]} 18. Qd3 {[%clk 0:01:41]} 18...
Rc8 {[%clk 0:01:58.6]} 19. Bd5 {[%clk 0:01:33]} 19... Rf6 {[%clk 0:01:50.7]} 20.
Qb1 {[%clk 0:01:11.8]} 20... e6 {[%clk 0:01:39.7]} 21. Bxe6 {[%clk 0:01:11.5]}
21... Rc7 {[%clk 0:01:29.1]} 22. dxc5 {[%clk 0:01:11.2]} 22... Rc6 {[%clk
0:01:16.4]} 23. Bxf5+ {[%clk 0:01:06.9]} 23... Kh8 {[%clk 0:01:16.5]} 24. Be4
{[%clk 0:01:01.4]} 24... Nxc4 {[%clk 0:01:13.6]} 25. Bd4 {[%clk 0:00:54.2]}
25... d5 {[%clk 0:01:00.4]} 26. Bxd5 {[%clk 0:00:45.8]} 26... Qf8 {[%clk
0:00:15.3]} 27. Bxc6 {[%clk 0:00:44.3]} 27... Rxc6 {[%clk 0:00:13.3]} 28. Bxg7+
{[%clk 0:00:44]} 28... Kxg7 {[%clk 0:00:14.1]} 29. Qxb7+ {[%clk 0:00:43.4]} 1-0

[Event "Early-Titled-Tuesday-Blitz-August-29-2023"]
[Site "Chess.com"]
[Date "2023.08.29"]
[Round "9"]
[White "Cherneevo_23"]
[Black "Irina_Mikhaylova"]
[Result "1/2-1/2"]
[WhiteElo "2415"]
[BlackElo "2295"]
[TimeControl "180+1"]
[EndTime "9:42:22 PDT"]
[Termination "Game drawn by repetition"]

1. Nf3 {[%clk 0:03:00.9]} 1... Nf6 {[%clk 0:02:56.6]} 2. c4 {[%clk 0:02:57.6]}
2... g6 {[%clk 0:02:55.4]} 3. Nc3 {[%clk 0:02:57.3]} 3... d5 {[%clk 0:02:55.4]}
4. cxd5 {[%clk 0:02:56.9]} 4... Nxd5 {[%clk 0:02:53.7]} 5. e4 {[%clk 0:02:57.5]}
5... Nxc3 {[%clk 0:02:52.7]} 6. dxc3 {[%clk 0:02:54.9]} 6... Qxd1+ {[%clk
0:02:50.2]} 7. Kxd1 {[%clk 0:02:55]} 7... f6 {[%clk 0:02:50]} 8. Bc4 {[%clk
0:02:50.3]} 8... e5 {[%clk 0:02:48.1]} 9. Be3 {[%clk 0:02:49.8]} 9... Bd6 {[%clk
0:02:45.8]} 10. Nd2 {[%clk 0:02:48.8]} 10... Ke7 {[%clk 0:02:43.1]} 11. Kc2
{[%clk 0:02:48.8]} 11... Be6 {[%clk 0:02:42.4]} 12. Bxe6 {[%clk 0:02:46]} 12...
Kxe6 {[%clk 0:02:42.4]} 13. Nc4 {[%clk 0:02:46.1]} 13... Nc6 {[%clk 0:02:25.4]}
14. a4 {[%clk 0:02:44.5]} 14... Rhd8 {[%clk 0:02:13.3]} 15. b4 {[%clk
0:02:40.8]} 15... Ne7 {[%clk 0:01:52.6]} 16. b5 {[%clk 0:02:38.4]} 16... a6
{[%clk 0:00:57.8]} 17. Rhb1 {[%clk 0:02:35.7]} 17... axb5 {[%clk 0:00:56.6]} 18.
axb5 {[%clk 0:02:35.2]} 18... b6 {[%clk 0:00:54.4]} 19. Kb3 {[%clk 0:02:30.2]}
19... f5 {[%clk 0:00:32.1]} 20. f3 {[%clk 0:02:28.7]} 20... f4 {[%clk
0:00:32.2]} 21. Bf2 {[%clk 0:02:28.2]} 21... g5 {[%clk 0:00:32.3]} 22. Nxd6
{[%clk 0:02:13.1]} 22... Kxd6 {[%clk 0:00:31.8]} 23. c4 {[%clk 0:02:06.7]} 23...
Rxa1 {[%clk 0:00:28.1]} 24. Rxa1 {[%clk 0:02:05.9]} 24... Rd7 {[%clk 0:00:27.9]}
25. c5+ {[%clk 0:02:04.1]} 25... bxc5 {[%clk 0:00:26.9]} 26. Kc4 {[%clk
0:02:04.2]} 26... Ke6 {[%clk 0:00:26.2]} 27. Ra6+ {[%clk 0:02:03.2]} 27... Kf7
{[%clk 0:00:25.4]} 28. Kc3 {[%clk 0:01:57.8]} 28... Ng6 {[%clk 0:00:18.8]} 29.
Ra7 {[%clk 0:01:31.2]} 29... Ke6 {[%clk 0:00:16.9]} 30. Bxc5 {[%clk 0:01:26.9]}
30... Nh4 {[%clk 0:00:16.5]} 31. Ra6+ {[%clk 0:01:24.4]} 31... Kf7 {[%clk
0:00:16.5]} 32. Ra2 {[%clk 0:01:22.5]} 32... h5 {[%clk 0:00:15.4]} 33. Ra7
{[%clk 0:01:12.3]} 33... Ke6 {[%clk 0:00:15.5]} 34. Ra8 {[%clk 0:01:09.5]} 34...
Nxg2 {[%clk 0:00:14.8]} 35. Re8+ {[%clk 0:01:08.5]} 35... Kf6 {[%clk 0:00:14.4]}
36. Rf8+ {[%clk 0:01:07.6]} 36... Kg6 {[%clk 0:00:14.5]} 37. Rg8+ {[%clk
0:01:04]} 37... Kf6 {[%clk 0:00:14.5]} 38. Rf8+ {[%clk 0:01:03.8]} 38... Kg6
{[%clk 0:00:14.9]} 39. Rg8+ {[%clk 0:01:04.2]} 39... Kf6 {[%clk 0:00:15.3]} 40.
Rf8+ {[%clk 0:01:04.5]} 1/2-1/2

[Event "Early-Titled-Tuesday-Blitz-August-29-2023"]
[Site "Chess.com"]
[Date "2023.08.29"]
[Round "9"]
[White "FARIZA2018"]
[Black "benny_aizenberg"]
[Result "0-1"]
[WhiteElo "2530"]
[BlackElo "2667"]
[TimeControl "180+1"]
[EndTime "9:42:23 PDT"]
[Termination "benny_aizenberg won by resignation"]

1. Nf3 {[%clk 0:02:58.5]} 1... Nc6 {[%clk 0:02:56.2]} 2. g3 {[%clk 0:02:57.5]}
2... e5 {[%clk 0:02:55.4]} 3. Nc3 {[%clk 0:02:56.7]} 3... d5 {[%clk 0:02:54.2]}
4. d3 {[%clk 0:02:55.1]} 4... Bb4 {[%clk 0:02:46.4]} 5. Bd2 {[%clk 0:02:54.6]}
5... Nf6 {[%clk 0:02:42.5]} 6. Bg2 {[%clk 0:02:54.5]} 6... O-O {[%clk
0:02:35.1]} 7. O-O {[%clk 0:02:54.2]} 7... h6 {[%clk 0:02:31.8]} 8. Re1 {[%clk
0:02:46.9]} 8... e4 {[%clk 0:02:21.4]} 9. Nh4 {[%clk 0:02:10.9]} 9... g5 {[%clk
0:02:20]} 10. dxe4 {[%clk 0:02:06.8]} 10... dxe4 {[%clk 0:02:15]} 11. Nxe4
{[%clk 0:02:06.1]} 11... Nxe4 {[%clk 0:01:52]} 12. Bxb4 {[%clk 0:01:59.3]} 12...
Qxd1 {[%clk 0:01:51.3]} 13. Rexd1 {[%clk 0:01:56.5]} 13... Nxb4 {[%clk
0:01:50.5]} 14. Bxe4 {[%clk 0:01:53.1]} 14... gxh4 {[%clk 0:01:49.8]} 15. gxh4
{[%clk 0:01:45.7]} 15... Re8 {[%clk 0:01:46.6]} 16. Bf3 {[%clk 0:01:24.5]} 16...
Bf5 {[%clk 0:01:38.4]} 17. c3 {[%clk 0:01:21.8]} 17... Nc6 {[%clk 0:01:36.7]}
18. Kh1 {[%clk 0:01:15.5]} 18... Ne5 {[%clk 0:01:29.1]} 19. Rg1+ {[%clk
0:01:15.5]} 19... Kf8 {[%clk 0:01:27.8]} 20. Bd5 {[%clk 0:01:05.5]} 20... c6
{[%clk 0:01:22.4]} 21. Bb3 {[%clk 0:01:00.4]} 21... Ng4 {[%clk 0:01:21.6]} 22.
Rae1 {[%clk 0:00:52.2]} 22... Nxf2+ {[%clk 0:01:19.5]} 23. Kg2 {[%clk 0:00:52]}
23... Ng4 {[%clk 0:01:16]} 24. Kg3 {[%clk 0:00:34.8]} 24... Ne3 {[%clk
0:01:02.7]} 25. Kf4 {[%clk 0:00:23.8]} 25... Re4+ {[%clk 0:01:02.2]} 26. Kg3
{[%clk 0:00:22.4]} 26... Rae8 {[%clk 0:01:03.1]} 27. h3 {[%clk 0:00:20.2]} 27...
Be6 {[%clk 0:00:59]} 28. Bxe6 {[%clk 0:00:17.4]} 28... R8xe6 {[%clk 0:00:59.9]}
29. Kh2 {[%clk 0:00:11]} 29... Rxh4 {[%clk 0:00:56.3]} 30. Rg3 {[%clk
0:00:11.5]} 30... Rf4 {[%clk 0:00:55.1]} 31. Reg1 {[%clk 0:00:11]} 31... Nf1+
{[%clk 0:00:53.1]} 32. Rxf1 {[%clk 0:00:08.5]} 32... Rxf1 {[%clk 0:00:54]} 0-1

[Event "Early-Titled-Tuesday-Blitz-August-29-2023"]
[Site "Chess.com"]
[Date "2023.08.29"]
[Round "9"]
[White "Eternauta2400"]
[Black "shimastream"]
[Result "0-1"]
[WhiteElo "2794"]
[BlackElo "2916"]
[TimeControl "180+1"]
[EndTime "9:42:25 PDT"]
[Termination "shimastream won by resignation"]

1. c4 {[%clk 0:03:00.9]} 1... g6 {[%clk 0:02:59.4]} 2. Nc3 {[%clk 0:02:59.6]}
2... Bg7 {[%clk 0:02:57]} 3. g3 {[%clk 0:03:00]} 3... e6 {[%clk 0:02:53]} 4. Bg2
{[%clk 0:02:59.7]} 4... Ne7 {[%clk 0:02:53.1]} 5. d4 {[%clk 0:02:59.5]} 5... d5
{[%clk 0:02:53]} 6. Nf3 {[%clk 0:02:59.5]} 6... Nbc6 {[%clk 0:02:51.3]} 7. cxd5
{[%clk 0:02:57.2]} 7... exd5 {[%clk 0:02:52.2]} 8. O-O {[%clk 0:02:57.1]} 8...
O-O {[%clk 0:02:52.1]} 9. Bf4 {[%clk 0:02:53.7]} 9... Bg4 {[%clk 0:02:51.6]} 10.
e3 {[%clk 0:02:51.3]} 10... Qd7 {[%clk 0:02:49.3]} 11. Rc1 {[%clk 0:02:49.2]}
11... Rac8 {[%clk 0:02:47.9]} 12. a3 {[%clk 0:02:48.5]} 12... h5 {[%clk
0:02:44.5]} 13. b4 {[%clk 0:02:47]} 13... a6 {[%clk 0:02:35]} 14. Na4 {[%clk
0:02:46.3]} 14... b6 {[%clk 0:02:33.5]} 15. Qb3 {[%clk 0:02:43.1]} 15... Bxf3
{[%clk 0:02:20.5]} 16. Bxf3 {[%clk 0:02:42.2]} 16... Nd8 {[%clk 0:02:13.4]} 17.
Nc3 {[%clk 0:02:34.1]} 17... c6 {[%clk 0:02:10.3]} 18. e4 {[%clk 0:01:47.7]}
18... Ne6 {[%clk 0:02:07.5]} 19. Be3 {[%clk 0:01:44.2]} 19... dxe4 {[%clk
0:01:59.8]} 20. Nxe4 {[%clk 0:01:43.1]} 20... Nf5 {[%clk 0:01:54.7]} 21. Rfd1
{[%clk 0:01:13.7]} 21... Nfxd4 {[%clk 0:01:46.7]} 22. Bxd4 {[%clk 0:01:13.7]}
22... Nxd4 {[%clk 0:01:47.6]} 23. Qe3 {[%clk 0:01:11.7]} 23... Rfd8 {[%clk
0:01:33]} 24. Kg2 {[%clk 0:01:07.2]} 24... Qe6 {[%clk 0:01:21.6]} 25. Qf4 {[%clk
0:00:59.6]} 25... Rd7 {[%clk 0:01:03.8]} 26. Ng5 {[%clk 0:00:53.4]} 26... Qf6
{[%clk 0:01:03.8]} 27. Qxf6 {[%clk 0:00:42.4]} 27... Bxf6 {[%clk 0:01:04.7]} 28.
Ne4 {[%clk 0:00:43.3]} 28... Be7 {[%clk 0:00:59.2]} 29. Rc4 {[%clk 0:00:41.3]}
29... Rcd8 {[%clk 0:00:58.5]} 30. Rdc1 {[%clk 0:00:39]} 30... Kg7 {[%clk
0:00:34.8]} 31. h4 {[%clk 0:00:38.8]} 31... a5 {[%clk 0:00:25.5]} 32. bxa5
{[%clk 0:00:34.1]} 32... b5 {[%clk 0:00:26]} 33. a4 {[%clk 0:00:35]} 33... bxc4
{[%clk 0:00:25.2]} 0-1

[Event "Early-Titled-Tuesday-Blitz-August-29-2023"]
[Site "Chess.com"]
[Date "2023.08.29"]
[Round "9"]
[White "RIPOL"]
[Black "le_poisson"]
[Result "1-0"]
[WhiteElo "2441"]
[BlackElo "2325"]
[TimeControl "180+1"]
[EndTime "9:42:25 PDT"]
[Termination "RIPOL won by resignation"]

1. d4 {[%clk 0:02:59.2]} 1... d5 {[%clk 0:02:59.7]} 2. c4 {[%clk 0:02:58.5]}
2... c6 {[%clk 0:03:00.1]} 3. Nf3 {[%clk 0:02:57]} 3... Nf6 {[%clk 0:02:59.9]}
4. Nc3 {[%clk 0:02:56.4]} 4... dxc4 {[%clk 0:02:59.7]} 5. e3 {[%clk 0:02:54.4]}
5... b5 {[%clk 0:02:58.4]} 6. a4 {[%clk 0:02:53.4]} 6... b4 {[%clk 0:02:56.6]}
7. Na2 {[%clk 0:02:53]} 7... e6 {[%clk 0:02:45.3]} 8. Bxc4 {[%clk 0:02:51]} 8...
Nbd7 {[%clk 0:02:45.5]} 9. O-O {[%clk 0:02:45.3]} 9... Bb7 {[%clk 0:02:45.8]}
10. Qe2 {[%clk 0:02:38.3]} 10... Be7 {[%clk 0:02:44.3]} 11. Bd2 {[%clk
0:02:37.1]} 11... a5 {[%clk 0:02:39.4]} 12. Nc1 {[%clk 0:02:27]} 12... O-O
{[%clk 0:02:36]} 13. Nb3 {[%clk 0:02:26.1]} 13... c5 {[%clk 0:02:31.6]} 14. Rfd1
{[%clk 0:02:21.1]} 14... Qb6 {[%clk 0:02:20.4]} 15. Be1 {[%clk 0:02:18.5]} 15...
Rfd8 {[%clk 0:02:14.1]} 16. Bb5 {[%clk 0:02:10.5]} 16... Rac8 {[%clk 0:02:06.5]}
17. Nfd2 {[%clk 0:02:06.6]} 17... Qa7 {[%clk 0:01:34]} 18. Nc4 {[%clk 0:02:02]}
18... Ne4 {[%clk 0:01:24.3]} 19. Nbxa5 {[%clk 0:01:52.1]} 19... Ba8 {[%clk
0:01:07.8]} 20. f3 {[%clk 0:01:46.6]} 20... Nd6 {[%clk 0:01:04.1]} 21. Nxd6
{[%clk 0:01:44.3]} 21... Bxd6 {[%clk 0:01:04.1]} 22. Nc4 {[%clk 0:01:43.8]}
22... Bb8 {[%clk 0:01:03.1]} 23. Bf2 {[%clk 0:01:38.6]} 23... Nf6 {[%clk
0:00:43.3]} 24. dxc5 {[%clk 0:01:32.4]} 24... Qxc5 {[%clk 0:00:38.6]} 25. Rxd8+
{[%clk 0:01:24.4]} 25... Rxd8 {[%clk 0:00:38.1]} 26. Rd1 {[%clk 0:01:24.8]}
26... Rc8 {[%clk 0:00:31.6]} 27. e4 {[%clk 0:01:17]} 27... Qh5 {[%clk
0:00:30.9]} 28. Nd6 {[%clk 0:00:59.1]} 28... Bxd6 {[%clk 0:00:21.1]} 29. Rxd6
{[%clk 0:00:56.7]} 29... Qe5 {[%clk 0:00:10.2]} 30. Qd2 {[%clk 0:00:46.8]} 30...
b3 {[%clk 0:00:09.8]} 31. Rd8+ {[%clk 0:00:43.2]} 31... Ne8 {[%clk 0:00:10.1]}
32. Rxc8 {[%clk 0:00:41]} 1-0

[Event "Early-Titled-Tuesday-Blitz-August-29-2023"]
[Site "Chess.com"]
[Date "2023.08.29"]
[Round "9"]
[White "ljm509"]
[Black "BashirliSaadat"]
[Result "0-1"]
[WhiteElo "2240"]
[BlackElo "2394"]
[TimeControl "180+1"]
[EndTime "9:42:27 PDT"]
[Termination "BashirliSaadat won by checkmate"]

1. e4 {[%clk 0:02:58.8]} 1... c6 {[%clk 0:03:00.1]} 2. d4 {[%clk 0:02:58.4]}
2... d5 {[%clk 0:03:00.1]} 3. e5 {[%clk 0:02:58.6]} 3... g6 {[%clk 0:02:59]} 4.
h4 {[%clk 0:02:56.5]} 4... h5 {[%clk 0:02:57.8]} 5. Nf3 {[%clk 0:02:55.8]} 5...
Bg4 {[%clk 0:02:56]} 6. Be2 {[%clk 0:02:55.8]} 6... Bg7 {[%clk 0:02:54.9]} 7.
Bg5 {[%clk 0:02:51.2]} 7... Nh6 {[%clk 0:02:54.1]} 8. Nbd2 {[%clk 0:02:48.6]}
8... Nf5 {[%clk 0:02:53.8]} 9. c3 {[%clk 0:02:47.3]} 9... O-O {[%clk 0:02:53.6]}
10. Nh2 {[%clk 0:02:45.2]} 10... Bxe2 {[%clk 0:02:52.6]} 11. Qxe2 {[%clk
0:02:46.1]} 11... f6 {[%clk 0:02:51.3]} 12. Bf4 {[%clk 0:02:43.4]} 12... Nxh4
{[%clk 0:02:47]} 13. g4 {[%clk 0:02:43.3]} 13... Ng2+ {[%clk 0:02:44.9]} 14. Kd1
{[%clk 0:02:37]} 14... Nxf4 {[%clk 0:02:43.3]} 15. Qf3 {[%clk 0:02:37.9]} 15...
fxe5 {[%clk 0:02:42.3]} 16. dxe5 {[%clk 0:02:37.7]} 16... h4 {[%clk 0:02:30.5]}
17. Kc2 {[%clk 0:02:32.8]} 17... g5 {[%clk 0:02:29.4]} 18. Qe3 {[%clk
0:02:28.8]} 18... e6 {[%clk 0:02:26.5]} 19. Nhf3 {[%clk 0:02:28.2]} 19... Nd7
{[%clk 0:02:25.6]} 20. Rh2 {[%clk 0:02:24.1]} 20... Bh6 {[%clk 0:02:01.2]} 21.
Rah1 {[%clk 0:02:17.2]} 21... h3 {[%clk 0:01:59.7]} 22. Ng1 {[%clk 0:02:11.8]}
22... Qb6 {[%clk 0:01:53.1]} 23. Qe1 {[%clk 0:02:02.7]} 23... Ng2 {[%clk
0:01:40.5]} 24. Qe2 {[%clk 0:01:55.1]} 24... Rxf2 {[%clk 0:01:34.2]} 25. Rxh3
{[%clk 0:01:42]} 25... Rxe2 {[%clk 0:01:30.7]} 26. Nxe2 {[%clk 0:01:40.1]} 26...
Nh4 {[%clk 0:01:30.1]} 27. Nf3 {[%clk 0:01:32.3]} 27... Qf2 {[%clk 0:01:24]} 28.
R1h2 {[%clk 0:01:29.2]} 28... Qc5 {[%clk 0:01:13.8]} 29. Nxh4 {[%clk 0:01:28.4]}
29... gxh4 {[%clk 0:01:14]} 30. Rxh4 {[%clk 0:01:29]} 30... Bg7 {[%clk
0:01:14.5]} 31. g5 {[%clk 0:01:20]} 31... Nxe5 {[%clk 0:01:12.7]} 32. Rg2 {[%clk
0:01:17.2]} 32... Ng6 {[%clk 0:01:10.3]} 33. Rh3 {[%clk 0:01:16.3]} 33... Rf8
{[%clk 0:01:05.4]} 34. Rhh2 {[%clk 0:01:13.1]} 34... e5 {[%clk 0:01:03.4]} 35.
b4 {[%clk 0:01:11]} 35... Qe3 {[%clk 0:01:00.9]} 36. Kb2 {[%clk 0:01:11.9]}
36... e4 {[%clk 0:00:58]} 37. Rg3 {[%clk 0:01:07.7]} 37... Rf3 {[%clk
0:00:56.2]} 38. Rxf3 {[%clk 0:01:07.3]} 38... exf3 {[%clk 0:00:56.4]} 39. Nd4
{[%clk 0:01:06]} 39... Bxd4 {[%clk 0:00:54.9]} 40. cxd4 {[%clk 0:01:06.9]} 40...
Qxd4+ {[%clk 0:00:55.5]} 41. Kb3 {[%clk 0:01:07.2]} 41... f2 {[%clk 0:00:54.4]}
42. Rxf2 {[%clk 0:01:06.9]} 42... Qxf2 {[%clk 0:00:53.8]} 43. b5 {[%clk
0:01:07.5]} 43... Qe3+ {[%clk 0:00:53.5]} 44. Kb4 {[%clk 0:01:07.2]} 44... Qd4+
{[%clk 0:00:51.7]} 45. Ka5 {[%clk 0:01:06.6]} 45... cxb5 {[%clk 0:00:50.9]} 46.
Kxb5 {[%clk 0:01:03.8]} 46... a6+ {[%clk 0:00:51.1]} 47. Ka5 {[%clk 0:01:03]}
47... Qc5+ {[%clk 0:00:48.5]} 48. Ka4 {[%clk 0:01:02.4]} 48... Qc4+ {[%clk
0:00:48.6]} 49. Ka3 {[%clk 0:01:00.9]} 49... Ne5 {[%clk 0:00:46.4]} 50. g6
{[%clk 0:01:00.4]} 50... Nd3 {[%clk 0:00:46.3]} 51. g7 {[%clk 0:00:58.3]} 51...
Qb4# {[%clk 0:00:46.6]} 0-1

[Event "Early-Titled-Tuesday-Blitz-August-29-2023"]
[Site "Chess.com"]
[Date "2023.08.29"]
[Round "9"]
[White "Quattroporte300"]
[Black "Dewarfd"]
[Result "1-0"]
[WhiteElo "2411"]
[BlackElo "2196"]
[TimeControl "180+1"]
[EndTime "9:42:27 PDT"]
[Termination "Quattroporte300 won by checkmate"]

1. e4 {[%clk 0:02:49.2]} 1... e5 {[%clk 0:02:56.1]} 2. Nf3 {[%clk 0:02:47.9]}
2... Nc6 {[%clk 0:02:55.7]} 3. Bc4 {[%clk 0:02:48.4]} 3... Nf6 {[%clk 0:02:55]}
4. d3 {[%clk 0:02:47.7]} 4... Be7 {[%clk 0:02:52.9]} 5. O-O {[%clk 0:02:47.5]}
5... O-O {[%clk 0:02:52.3]} 6. Re1 {[%clk 0:02:47.5]} 6... d6 {[%clk 0:02:46.6]}
7. a4 {[%clk 0:02:46.6]} 7... Na5 {[%clk 0:02:43.9]} 8. Ba2 {[%clk 0:02:45.9]}
8... c5 {[%clk 0:02:44.3]} 9. c3 {[%clk 0:02:37.9]} 9... Bg4 {[%clk 0:02:39.9]}
10. h3 {[%clk 0:02:36.5]} 10... Bxf3 {[%clk 0:02:37.4]} 11. Qxf3 {[%clk
0:02:35.1]} 11... Nc6 {[%clk 0:02:35.4]} 12. Nd2 {[%clk 0:02:35.2]} 12... a6
{[%clk 0:02:35]} 13. Nf1 {[%clk 0:02:34.4]} 13... b5 {[%clk 0:02:30.6]} 14. Ng3
{[%clk 0:02:29.7]} 14... b4 {[%clk 0:02:16.4]} 15. Bg5 {[%clk 0:02:24.9]} 15...
bxc3 {[%clk 0:02:14.9]} 16. bxc3 {[%clk 0:02:24.2]} 16... Rb8 {[%clk 0:01:52.1]}
17. Bc4 {[%clk 0:02:20.1]} 17... a5 {[%clk 0:01:40]} 18. Bb5 {[%clk 0:02:16.8]}
18... Na7 {[%clk 0:01:33.1]} 19. c4 {[%clk 0:02:17.1]} 19... Nc8 {[%clk
0:01:28.6]} 20. Nf5 {[%clk 0:02:14.4]} 20... Nb6 {[%clk 0:01:27.4]} 21. Bd2
{[%clk 0:02:10.5]} 21... Nbd7 {[%clk 0:01:25.4]} 22. Qg3 {[%clk 0:02:09.4]}
22... Nh5 {[%clk 0:01:22.3]} 23. Qg4 {[%clk 0:02:06.1]} 23... g6 {[%clk
0:01:20.7]} 24. Nxe7+ {[%clk 0:01:59.4]} 24... Qxe7 {[%clk 0:01:20.3]} 25. Qxd7
{[%clk 0:01:59.6]} 25... Qf6 {[%clk 0:01:06.9]} 26. Qg4 {[%clk 0:01:57.6]} 26...
Qg7 {[%clk 0:01:04.4]} 27. Bxa5 {[%clk 0:01:56.5]} 27... f5 {[%clk 0:01:03.7]}
28. exf5 {[%clk 0:01:56.5]} 28... Rxf5 {[%clk 0:01:04.4]} 29. Bd2 {[%clk
0:01:50.1]} 29... Rbf8 {[%clk 0:01:02.4]} 30. Re2 {[%clk 0:01:50.4]} 30... Nf6
{[%clk 0:00:57.6]} 31. Qg3 {[%clk 0:01:50.2]} 31... e4 {[%clk 0:00:56.1]} 32.
Rae1 {[%clk 0:01:43.3]} 32... Nh5 {[%clk 0:00:42.5]} 33. Qxd6 {[%clk 0:01:43]}
33... exd3 {[%clk 0:00:34.5]} 34. Qxd3 {[%clk 0:01:41.7]} 34... Qf7 {[%clk
0:00:12]} 35. Re7 {[%clk 0:01:33.3]} 35... Qf6 {[%clk 0:00:04.5]} 36. f3 {[%clk
0:01:30.8]} 36... Ng3 {[%clk 0:00:03.5]} 37. Bc3 {[%clk 0:01:26.5]} 37... Qh4
{[%clk 0:00:02]} 38. Rg7+ {[%clk 0:01:25.3]} 38... Kh8 {[%clk 0:00:02.6]} 39.
Rxg6+ {[%clk 0:01:21.4]} 39... R5f6 {[%clk 0:00:03.1]} 40. Bxf6+ {[%clk
0:01:20.5]} 40... Rxf6 {[%clk 0:00:03.7]} 41. Qd8+ {[%clk 0:01:20.9]} 41... Rf8
{[%clk 0:00:03]} 42. Qxf8# {[%clk 0:01:20.6]} 1-0